{"text_format":"2","workbook":"xlsx","n_sheets":6,"sheets":["مرحله اول","مرحله دوم-گروه الف","مرحله دوم-گروه ب","مرحله دوم-گروه ج","مرحله دوم-گروه د","اختصاصی افراد دارای معلولیت"],"not_rendered":{"charts":0,"images":2,"macros":0,"external_links":0,"defined_names":0,"comments":0,"pivot_tables":0},"unopened":[],"bounds":{"document_bytes":16777216,"sheet_cells":100000,"run_cost":"one","rows_first":2000,"rows_last":500,"rows_between":2000,"halvings":0,"cell_chars":16384,"cell_head_chars":4096},"cells_cut":0,"cells_raw":0,"read":"whole","date_system":"1900"}

{"sheet":"مرحله اول","index":0,"n_rows":100,"n_cols":6,"rows_kept":100,"cut":false,"hidden":false,"merged":[[88,1,89,1],[88,3,88,4],[95,1,96,1],[95,3,95,4],[79,1,80,1],[79,3,79,4],[83,1,84,1],[83,3,83,4],[72,1,73,1],[72,3,72,4],[75,1,76,1],[75,3,75,4],[63,1,64,1],[63,3,63,4],[67,1,68,1],[67,3,67,4],[49,1,50,1],[49,3,49,4],[58,1,59,1],[58,3,58,4],[37,1,38,1],[37,3,37,4],[42,1,43,1],[42,3,42,4],[21,1,22,1],[21,3,21,4],[28,1,29,1],[28,3,28,4],[12,1,13,1],[12,3,12,4],[17,1,18,1],[17,3,17,4],[0,1,0,5],[1,1,2,1],[1,3,1,4],[7,1,8,1],[7,3,7,4]]}
[null,"سیاهه ی بازبینی نقشه های معماری مرحله اول (کلیه گروه های ساختمانی)"]
[null,"ردیف",1,"دیدگاه طراح",null,"دیدگاه بازبین"]
[null,null,"کلیات آلبوم","تأیید","عدم نیاز","عدم تأیید با ذکر توضیحات"]
[null,1,"کلیه نقشه ها با مقیاس مشخص ارایه شده است."]
[null,2,"شماره گذاری صفحات آلبوم رعایت شده است."]
[null,{"$f":"B5+1","v":3},"ضخامت خطوط و خوانایی چاپ نقشه رعایت شده است."]
[null,4,"صحافی آلبوم انجام شده است."]
[null,"ردیف",2,"دیدگاه طراح",null,"دیدگاه بازبین"]
[null,null,"روی آلبوم","تأیید","عدم نیاز","عدم تأیید با ذکر توضیحات"]
[null,1,"عنوان ساختمان درج شده است."]
[null,2,"نام صاحب کار درج شده است."]
[null,3,"کد یکتا یا کد نوسازی شهرداری درج شده است."]
[null,"ردیف",3,"دیدگاه طراح",null,"دیدگاه بازبین"]
[null,null,"زیرجلد آلبوم","تأیید","عدم نیاز","عدم تأیید با ذکر توضیحات"]
[null,1,"کاربری بنا و نشانی پروژه درج شده است."]
[null,2,"تعداد طبقات طراحی درج شده است."]
[null,3,"نوع اسکلت وسقف درج شده است."]
[null,"ردیف",4,"دیدگاه طراح",null,"دیدگاه بازبین"]
[null,null,"فهرست و جدول متراژ","تأیید","عدم نیاز","عدم تأیید با ذکر توضیحات"]
[null,1,"عنوان و شماره صفحه نقشه درج شده است."]
[null,2,"جدول متراژ ارائه شده است."]
[null,"ردیف",5,"دیدگاه طراح",null,"دیدگاه بازبین"]
[null,null,"پلان سایت","تأیید","عدم نیاز","عدم تأیید با ذکر توضیحات"]
[null,1,"کدهای ارتفاعی ملک بر اساس معابر دسترسی آن درج شده است."]
[null,2,"ابعاد، مساحت زمین و سطح اشغال مجاز درج شده است."]
[null,3,"میزان تعریض معابر و پیشامدگی مجاورین درج شده است."]
[null,4,"جهت شمال مشخص شده است."]
[null,5,"پیشامدگی های مجاز ترسیم شده است."]
[null,"ردیف","6پلان اندازه گذاری","دیدگاه طراح",null,"دیدگاه بازبین"]
[null,null,"6-1کلیات","تأیید","عدم نیاز","عدم تأیید با ذکر توضیحات"]
[null,1,"خط نازک کاری نما، خط برش و درز انقطاع در پلان ها ترسیم شده است."]
[null,2,"ستون گذاری و اکس بندی ترسیم شده است."]
[null,3,"اندازه گذاری پلان ها بر مبنای سفت کاری انجام شده است."]
[null,4,"ضخامت دیوار و ترسیم مناسب آن رعایت شده است."]
[null,5,"نام فضاها، مساحت واحدها و کدهای ارتفاعی قید شده است."]
[null,6,"درها از نظر موقعیت و اندازه به صورت استاندارد ترسیم شده است."]
[null,7,"محل درختان موجود در ملک و معابر دسترسی آن با اندازه گذاری مشخص شده است."]
[null,"ردیف","6پلان اندازه گذاری","دیدگاه طراح",null,"دیدگاه بازبین"]
[null,null,"6-2پارکینگ","تأیید","عدم نیاز","عدم تأیید با ذکر توضیحات"]
[null,1,"عرض مناسب دسترسی به اتاق تاسیسات، ورودی و انبارهای گروهی در صورت عبور از محل توقف خودروها، رعایت و با اختلاف ارتفاع مشخص شده است."]
[null,{"$f":"B40+1","v":2},"طول پیشروی استاندارد و ارتفاع سرگیری رمپ رعایت و مشخص شده است."]
[null,3,"ابعاد، جانمایی و شعاع گردش خودروها رعایت شده است."]
[null,"ردیف","6پلان اندازه گذاری","دیدگاه طراح",null,"دیدگاه بازبین"]
[null,null,"6-3ابعاد فضاها","تأیید","عدم نیاز","عدم تأیید با ذکر توضیحات"]
[null,1,"حداقل ابعاد فضاهای اقامت رعایت شده است."]
[null,{"$f":"B45+1","v":2},"حداقل عرض 215 سانتیمتر برای آشپزخانه رعایت شده است."]
[null,3,"حداقل عرض 180 سانتیمتر برای آبدارخانه(بدون امکان پخت و پز) رعایت شده است."]
[null,4,"حداقل عرض راهروها رعایت شده است."]
[null,5,"حداقل عرض سرویس های بهداشتی رعایت شده است."]
[null,"ردیف","6پلان اندازه گذاری","دیدگاه طراح",null,"دیدگاه بازبین"]
[null,null,"6-4پلکان و آسانسور","تأیید","عدم نیاز","عدم تأیید با ذکر توضیحات"]
[null,1,"حداقل ابعاد استاندارد پله و پاگرد رعایت شده است."]
[null,{"$f":"B52+1","v":2},"تعداد و جهت حرکت پله مشخص گردیده است."]
[null,3,"عدم تداخل عناصر سازه ای با عملکرد پلکان و آسانسور رعایت شده است."]
[null,4,"ارتفاع سرگیر پله(205 سانتیمتر) رعایت شده است."]
[null,5,"جانپناه پله ترسیم شده است."]
[null,6,"ستون گذاری و اندازه گذاری خرپشته انجام شده است."]
[null,7,"تعداد پله های دسترسی طبقات با احتساب ارتفاع حداکثر 18 و کف حداقل 28 سانتیمتر و رعایت نسبت  ارتفاع و کف برای هر پله محاسبه و ترسیم شده است. "]
[null,"ردیف","7پلان مبلمان","دیدگاه طراح",null,"دیدگاه بازبین"]
[null,null,"7-1کلیات","تأیید","عدم نیاز","عدم تأیید با ذکر توضیحات"]
[null,1,"آکس‌بندی، ستون گذاری ترسیم شده است."]
[null,2,"درها و پنجره ها ترسیم شده است."]
[null,3,"کدهای ارتفاعی درج شده است."]
[null,"ردیف","7پلان مبلمان","دیدگاه طراح",null,"دیدگاه بازبین"]
[null,null,"7-2نشیمن پذیرایی","تأیید","عدم نیاز","عدم تأیید با ذکر توضیحات"]
[null,1,"مبلمان متناسب پذیرایی و غذاخوری ترسیم شده است."]
[null,{"$f":"B66+1","v":2},"مبلمان متناسب تماشای تلویزیون ترسیم شده است."]
[null,"ردیف","7پلان مبلمان","دیدگاه طراح",null,"دیدگاه بازبین"]
[null,null,"7-3آشپزخانه","تأیید","عدم نیاز","عدم تأیید با ذکر توضیحات"]
[null,1,"یخچال، سینک ظرفشویی و اجاق گاز جانمایی شده اند."]
[null,2,"موقعیت پکیج (در صورت قرارگیری در آشپزخانه) مشخص شده است."]
[null,{"$f":"B71+1","v":3},"ماشین ظرفشویی و لباسشویی (در صورت قرارگیری در آشپزخانه) ترسیم شده اند."]
[null,"ردیف","7پلان مبلمان","دیدگاه طراح",null,"دیدگاه بازبین"]
[null,null,"7-4اتاق خواب","تأیید","عدم نیاز","عدم تأیید با ذکر توضیحات"]
[null,1,"کمدها، تخت و میز آرایش (کار) ترسیم شده است."]
[null,"ردیف","7پلان مبلمان","دیدگاه طراح",null,"دیدگاه بازبین"]
[null,null,"7-5حمام و سرویس","تأیید","عدم نیاز","عدم تأیید با ذکر توضیحات"]
[null,1,"توالت ایرانی و فرنگی ترسیم شده است."]
[null,2,"روشویی، دوش و حوله خشک کن ترسیم شده است."]
[null,"ردیف","7پلان مبلمان","دیدگاه طراح",null,"دیدگاه بازبین"]
[null,null,"7-6مشاعات","تأیید","عدم نیاز","عدم تأیید با ذکر توضیحات"]
[null,1," فضای مورد نیاز تاسیسات پیش بینی و ترسیم شده است."]
[null,2,"مبلمان، فضای سبز  و کلیه درختان موجود حیاط ترسیم شده است."]
[null,"ردیف",8,"دیدگاه طراح",null,"دیدگاه بازبین"]
[null,null,"پلان شیب بندی بام","تأیید","عدم نیاز","عدم تأیید با ذکر توضیحات"]
[null,1," آکس‌بندی مشخص شده است."]
[null,{"$f":"B86+1","v":2},"شیب بندی بام اصلی  و خرپشته ترسیم شده است."]
[null,3,"کدهای ارتفاعی و اندازه گذاری ها انجام شده است."]
[null,"ردیف",9,"دیدگاه طراح",null,"دیدگاه بازبین"]
[null,null,"مقطع","تأیید","عدم نیاز","عدم تأیید با ذکر توضیحات"]
[null,1," آکس‌بندی مشخص شده است."]
[null,2,"با پلان ها انطباق دارد."]
[null,3,"با نماها انطباق دارد."]
[null,4,"پله ها به درستی ترسیم شده است."]
[null,5,"جانپناه ها و نرده پله ترسیم شده اند."]
[null,"ردیف",10,"دیدگاه طراح",null,"دیدگاه بازبین"]
[null,null,"نما","تأیید","عدم نیاز","عدم تأیید با ذکر توضیحات"]
[null,1," آکس‌بندی مشخص شده است."]
[null,{"$f":"B98+1","v":2},"با پلان ها انطباق دارد."]
[null,3," با مقاطع انطباق دارد."]

{"sheet":"مرحله دوم-گروه الف","index":1,"n_rows":144,"n_cols":6,"rows_kept":144,"cut":false,"hidden":false,"merged":[[127,1,128,1],[127,3,127,4],[139,1,140,1],[139,3,139,4],[99,1,100,1],[99,3,99,4],[107,1,108,1],[107,3,107,4],[115,1,116,1],[115,3,115,4],[86,1,87,1],[86,3,86,4],[91,1,92,1],[91,3,91,4],[95,1,96,1],[95,3,95,4],[66,1,67,1],[66,3,66,4],[75,1,76,1],[75,3,75,4],[81,1,82,1],[81,3,81,4],[48,1,49,1],[48,3,48,4],[54,1,55,1],[54,3,54,4],[59,1,60,1],[59,3,59,4],[27,1,28,1],[27,3,27,4],[36,1,37,1],[36,3,36,4],[20,1,21,1],[20,3,20,4],[24,1,25,1],[24,3,24,4],[12,1,13,1],[12,3,12,4],[0,1,0,5],[1,1,2,1],[1,3,1,4],[7,1,8,1],[7,3,7,4]]}
[null,"سیاهه ی بازبینی نقشه های معماری مرحله دوم (گروه «الف» )"]
[null,"ردیف",1,"دیدگاه طراح",null,"دیدگاه بازبین"]
[null,null,"کلیات آلبوم","تأیید","عدم نیاز","عدم تأیید با ذکر توضیحات"]
[null,1,"کلیه نقشه ها با مقیاس مشخص ارایه شده است."]
[null,2,"شماره گذاری صفحات آلبوم رعایت شده است."]
[null,{"$f":"B5+1","v":3},"ضخامت خطوط و خوانایی چاپ نقشه رعایت شده است."]
[null,{"$f":"B6+1","v":4},"صحافی آلبوم انجام شده است."]
[null,"ردیف",2,"دیدگاه طراح",null,"دیدگاه بازبین"]
[null,null,"روی آلبوم","تأیید","عدم نیاز","عدم تأیید با ذکر توضیحات"]
[null,1,"عنوان ساختمان درج شده است."]
[null,2,"نام صاحب کار درج شده است."]
[null,3,"کد یکتا یا کد نوسازی شهرداری درج شده است."]
[null,"ردیف",3,"دیدگاه طراح",null,"دیدگاه بازبین"]
[null,null,"زیرجلد آلبوم","تأیید","عدم نیاز","عدم تأیید با ذکر توضیحات"]
[null,1,"کاربری بنا و نشانی پروژه درج شده است."]
[null,{"$f":"B15+1","v":2},"تعداد طبقات طراحی درج شده است."]
[null,3,"نوع اسکلت، سقف و مهاربندی جانبی درج شده است."]
[null,{"$f":"B17+1","v":4},"سیستم سرمایش وگرمایش مشخص شده است."]
[null,{"$f":"B18+1","v":5},"نوع آسانسور مشخص شده است."]
[null,{"$f":"B19+1","v":6},"سیستم خاص تاسیسات برقی(در صورت وجود) درج شده است."]
[null,"ردیف",4,"دیدگاه طراح",null,"دیدگاه بازبین"]
[null,null,"فهرست و جدول متراژ","تأیید","عدم نیاز","عدم تأیید با ذکر توضیحات"]
[null,1,"عنوان و شماره صفحه نقشه درج شده است."]
[null,2,"جدول متراژ ارایه شده است."]
[null,"ردیف",5,"دیدگاه طراح",null,"دیدگاه بازبین"]
[null,null,"نکات عمومی و ملاحظات","تأیید","عدم نیاز","عدم تأیید با ذکر توضیحات"]
[null,1," توضیحات مرتیط با پروژه ارائه شده است."]
[null,"ردیف",6,"دیدگاه طراح",null,"دیدگاه بازبین"]
[null,null,"پلان سایت","تأیید","عدم نیاز","عدم تأیید با ذکر توضیحات"]
[null,1,"کدهای ارتفاعی ملک بر اساس معابر دسترسی آن درج شده است."]
[null,2,"ابعاد، مساحت زمین و سطح اشغال مجاز درج شده است."]
[null,3,"میزان تعریض معابر و پیشامدگی مجاورین درج شده است."]
[null,4,"جهت شمال مشخص شده است."]
[null,5,"پیشامدگی های مجاز ترسیم شده است."]
[null,6,"راستای پلاک های مجاور(از هر طرف2پلاک)ترسیم شده است."]
[null,7,"درز انقطاع همجواری ترسیم شده است."]
[null,"ردیف","7پلان اندازه گذاری","دیدگاه طراح",null,"دیدگاه بازبین"]
[null,null,"7-1کلیات","تأیید","عدم نیاز","عدم تأیید با ذکر توضیحات"]
[null,1,"خط نازک کاری نما، خط برش و درز انقطاع در پلان ها ترسیم شده است."]
[null,2," خط نمای جبهه مشرف به همسایه در پلاک‌های شمالی ترسیم شده است. "]
[null,3,"ستون گذاری،‌ اکس بندی و مهاربندی جانبی ترسیم شده است."]
[null,4,"اندازه گذاری پلان ها بر مبنای سفت کاری انجام شده است."]
[null,5,"ضخامت دیوار و ترسیم مناسب آن رعایت شده است."]
[null,6,"نام فضاها، مساحت واحدها و کدهای ارتفاعی قید شده است."]
[null,7,"درها از نظر موقعیت و اندازه به صورت استاندارد ترسیم شده است."]
[null,8,"تیپ بندی درها و پنجره ها نمایش داده شده است."]
[null,9,"خطوط نمایش سقف کاذب ترسیم شده است."]
[null,10,"اشراف پنجره‌های غیر جنوبی، رعایت شده است."]
[null,"ردیف","7پلان اندازه گذاری","دیدگاه طراح",null,"دیدگاه بازبین"]
[null,null,"7-2داکتهای تاسیساتی","تأیید","عدم نیاز","عدم تأیید با ذکر توضیحات"]
[null,1," داکت تأسیسات برقی ترسیم شده است."]
[null,{"$f":"B51+1","v":2},"داکت های تاسیسات مکانیکی (تهویه، فاضلاب، باران و آتش نشانی) ترسیم شده اند."]
[null,3,"داکت سیستم سرمایش/گرمایش ترسیم شده است.  "]
[null,{"$f":"B53+1","v":4},"داکت تهویه پارکینگ ترسیم شده است."]
[null,"ردیف","7پلان اندازه گذاری","دیدگاه طراح",null,"دیدگاه بازبین"]
[null,null,"7-3پارکینگ","تأیید","عدم نیاز","عدم تأیید با ذکر توضیحات"]
[null,1,"عرض مناسب دسترسی به اتاق تاسیسات، ورودی و انبارهای گروهی در صورت عبور از محل توقف خودروها، رعایت و با اختلاف ارتفاع مشخص شده است."]
[null,{"$f":"B57+1","v":2},"طول پیشروی استاندارد و ارتفاع سرگیری رمپ رعایت و مشخص شده است."]
[null,3,"ابعاد، جانمایی و شعاع گردش خودروها رعایت شده است."]
[null,"ردیف","7پلان اندازه گذاری","دیدگاه طراح",null,"دیدگاه بازبین"]
[null,null,"7-4ابعاد فضاها","تأیید","عدم نیاز","عدم تأیید با ذکر توضیحات"]
[null,1,"حداقل ابعاد فضاهای اقامت رعایت شده است."]
[null,{"$f":"B62+1","v":2},"حداقل عرض 215 سانتیمتر برای آشپزخانه رعایت شده است."]
[null,{"$f":"B63+1","v":3},"حداقل عرض 180 سانتیمتر برای آبدارخانه(بدون امکان پخت و پز) رعایت شده است."]
[null,{"$f":"B64+1","v":4},"حداقل عرض راهروها رعایت شده است."]
[null,{"$f":"B65+1","v":5},"حداقل عرض سرویس های بهداشتی رعایت شده است."]
[null,"ردیف","7پلان اندازه گذاری","دیدگاه طراح",null,"دیدگاه بازبین"]
[null,null,"7-5پلکان و آسانسور","تأیید","عدم نیاز","عدم تأیید با ذکر توضیحات"]
[null,1,"حداقل ابعاد استاندارد پله و پاگرد رعایت شده است."]
[null,{"$f":"B69+1","v":2},"تعداد و جهت حرکت پله مشخص گردیده است."]
[null,3,"عدم تداخل عناصر سازه ای با عملکرد پلکان و آسانسور رعایت شده است."]
[null,4,"ارتفاع سرگیر پله(205 سانتیمتر) رعایت شده است."]
[null,5,"جانپناه پله ترسیم شده است."]
[null,6,"ستون گذاری و اندازه گذاری خرپشته انجام شده است."]
[null,7,"تعداد پله های دسترسی طبقات با احتساب ارتفاع حداکثر 18 و کف حداقل 28 سانتیمتر و رعایت نسبت  ارتفاع و کف برای هر پله محاسبه و ترسیم شده است. "]
[null,"ردیف","8پلان مبلمان","دیدگاه طراح",null,"دیدگاه بازبین"]
[null,null,"8-1کلیات","تأیید","عدم نیاز","عدم تأیید با ذکر توضیحات"]
[null,1,"آکس‌بندی، ستون گذاری و موقعیت مهاربندی ترسیم شده است."]
[null,2,"درها و پنجره ها ترسیم شده است."]
[null,3,"کدهای ارتفاعی درج شده است."]
[null,4,"ادرس دهی جزییات و بزرگنمایی های نقشه درج شده است."]
[null,"ردیف","8پلان مبلمان","دیدگاه طراح",null,"دیدگاه بازبین"]
[null,null,"8-2نشیمن پذیرایی","تأیید","عدم نیاز","عدم تأیید با ذکر توضیحات"]
[null,1,"مبلمان متناسب پذیرایی و غذاخوری ترسیم شده است."]
[null,{"$f":"B84+1","v":2},"مبلمان متناسب تماشای تلویزیون ترسیم شده است."]
[null,3,"رادیاتورها و یونیت اسپلیت ترسیم شده است."]
[null,"ردیف","8پلان مبلمان","دیدگاه طراح",null,"دیدگاه بازبین"]
[null,null,"8-3آشپزخانه","تأیید","عدم نیاز","عدم تأیید با ذکر توضیحات"]
[null,1,"یخچال، سینک ظرفشویی و اجاق گاز جانمایی شده اند."]
[null,2,"موقعیت پکیج (در صورت قرارگیری در آشپزخانه) مشخص شده است."]
[null,{"$f":"B90+1","v":3},"ماشین ظرفشویی و لباسشویی (در صورت قرارگیری در آشپزخانه) ترسیم شده اند."]
[null,"ردیف","8پلان مبلمان","دیدگاه طراح",null,"دیدگاه بازبین"]
[null,null,"8-4اتاق خواب","تأیید","عدم نیاز","عدم تأیید با ذکر توضیحات"]
[null,1,"کمدها، تخت و میز آرایش (کار) ترسیم شده است."]
[null,2,"رادیاتورها و یونیت اسپلیت ترسیم شده است."]
[null,"ردیف","8پلان مبلمان","دیدگاه طراح",null,"دیدگاه بازبین"]
[null,null,"8-5حمام و سرویس","تأیید","عدم نیاز","عدم تأیید با ذکر توضیحات"]
[null,1,"توالت ایرانی و فرنگی ترسیم شده است."]
[null,2,"روشویی، دوش و حوله خشک کن ترسیم شده است."]
[null,"ردیف","8پلان مبلمان","دیدگاه طراح",null,"دیدگاه بازبین"]
[null,null,"8-6مشاعات","تأیید","عدم نیاز","عدم تأیید با ذکر توضیحات"]
[null,1,"محل توقف و تعداد خودرو  مشخص شده است."]
[null,{"$f":"B102+1","v":2},"مبلمان لابی ترسیم شده است."]
[null,{"$f":"B103+1","v":3},"کنتور آب، گاز و برق جانمایی شده اند."]
[null,{"$f":"B104+1","v":4},"رایزهای عموی تاسیسات و تابلوهای آتش نشانی مشخص شده است."]
[null,{"$f":"B105+1","v":5}," فضای مورد نیاز تاسیسات پیش بینی و ترسیم شده است."]
[null,{"$f":"B106+1","v":6},"مبلمان، فضای سبز  و کلیه درختان موجود حیاط ترسیم شده است."]
[null,"ردیف",9,"دیدگاه طراح",null,"دیدگاه بازبین"]
[null,null,"پلان شیب بندی بام","تأیید","عدم نیاز","عدم تأیید با ذکر توضیحات"]
[null,1," آکس‌بندی مشخص شده است."]
[null,{"$f":"B110+1","v":2},"شیب بندی بام اصلی  و خرپشته ترسیم شده است."]
[null,3,"حوزه جمع آوری آب باران و محل خروجی مشخص شده است."]
[null,4,"سیستم های تاسیساتی روی بام، جانمایی شده اند."]
[null,{"$f":"B113+1","v":5},"موقعیت داکت های تأسیساتی مشخص شده است"]
[null,{"$f":"B114+1","v":6},"کدهای ارتفاعی و اندازه گذاری ها انجام شده است."]
[null,"ردیف",10,"دیدگاه طراح",null,"دیدگاه بازبین"]
[null,null,"مقطع","تأیید","عدم نیاز","عدم تأیید با ذکر توضیحات"]
[null,1," آکس‌بندی مشخص شده است."]
[null,2,"با پلان ها انطباق دارد."]
[null,3,"تراز روی فنداسیون مشخص شده است."]
[null,4,"با نماها انطباق دارد."]
[null,5,"پله ها به درستی ترسیم شده است."]
[null,6,"تیرهای اصلی سازه در مقطع نمایش داده شود."]
[null,7,"جانپناه ها و نرده پله ترسیم شده اند."]
[null,8,"کدهای ارتفاعی طبقات، پاگرد پله و پیش آمدگی ها نمایش داده شده است."]
[null,9,"کد ارتفاعی پنجره ها، جانپناه و درها نمایش داده شده است."]
[null,10,"سقف کاذب ترسیم شده است."]
[null,"ردیف",11,"دیدگاه طراح",null,"دیدگاه بازبین"]
[null,null,"نما","تأیید","عدم نیاز","عدم تأیید با ذکر توضیحات"]
[null,1," آکس‌بندی مشخص شده است."]
[null,{"$f":"B130+1","v":2},"با پلان ها انطباق دارد."]
[null,3," با مقاطع انطباق دارد."]
[null,4,"معرفی مصالح با ذکر کد، ابعاد و رنگ مشخص شده است."]
[null,5,"خط‌چین سقف ها ترسیم شده است."]
[null,6,"جزییات لازم جهت اجرا ی نما ترسیم شده است."]
[null,7,"تیپ بندی در و پنجره انجام شده است."]
[null,8,"کد ارتفاعی پنجره ها، پاگرد پله و جانپناه نمایش داده شده است."]
[null,9,"کد ارتفاعی سایر اجزای نما حسب ضرورت درج شده است."]
[null,10,"موقعیت wall section مشخص شده است."]
[null,"ردیف",12,"دیدگاه طراح",null,"دیدگاه بازبین"]
[null,null,"پلان پوشش سقف ها","تأیید","عدم نیاز","عدم تأیید با ذکر توضیحات"]
[null,1," آکس‌بندی مشخص شده است."]
[null,{"$f":"B142+1","v":2},"موقعیت و ابعاد بازشوهای سقف مشخص شده است."]
[null,{"$f":"B143+1","v":3},"شکل و اندازه گذاری لبه سقف در محدوده نما مشخص شده است."]

{"sheet":"مرحله دوم-گروه ب","index":2,"n_rows":160,"n_cols":6,"rows_kept":160,"cut":false,"hidden":false,"merged":[[12,1,13,1],[12,3,12,4],[0,1,0,5],[1,1,2,1],[1,3,1,4],[7,1,8,1],[7,3,7,4],[20,1,21,1],[20,3,20,4],[25,1,26,1],[25,3,25,4],[29,1,30,1],[29,3,29,4],[32,1,33,1],[32,3,32,4],[38,1,39,1],[38,3,38,4],[47,1,48,1],[47,3,47,4],[59,1,60,1],[59,3,59,4],[65,1,66,1],[65,3,65,4],[70,1,71,1],[70,3,70,4],[77,1,78,1],[77,3,77,4],[86,1,87,1],[86,3,86,4],[92,1,93,1],[92,3,92,4],[97,1,98,1],[97,3,97,4],[102,1,103,1],[102,3,102,4],[106,1,107,1],[106,3,106,4],[110,1,111,1],[110,3,110,4],[118,1,119,1],[118,3,118,4],[126,1,127,1],[126,3,126,4],[150,1,151,1],[150,3,150,4],[155,1,156,1],[155,3,155,4],[138,1,139,1],[138,3,138,4]]}
[null,"سیاهه ی بازبینی نقشه های معماری مرحله دوم (گروه «ب» )"]
[null,"ردیف",1,"دیدگاه طراح",null,"دیدگاه بازبین"]
[null,null,"کلیات آلبوم","تأیید","عدم نیاز","عدم تأیید با ذکر توضیحات"]
[null,1,"کلیه نقشه ها با مقیاس مشخص ارایه شده است."]
[null,2,"شماره گذاری صفحات آلبوم رعایت شده است."]
[null,{"$f":"B5+1","v":3},"ضخامت خطوط و خوانایی چاپ نقشه رعایت شده است."]
[null,{"$f":"B6+1","v":4},"صحافی آلبوم انجام شده است."]
[null,"ردیف",2,"دیدگاه طراح",null,"دیدگاه بازبین"]
[null,null,"روی آلبوم","تأیید","عدم نیاز","عدم تأیید با ذکر توضیحات"]
[null,1,"عنوان ساختمان درج شده است."]
[null,2,"نام صاحب کار درج شده است."]
[null,3,"کد یکتا یا کد نوسازی شهرداری درج شده است."]
[null,"ردیف",3,"دیدگاه طراح",null,"دیدگاه بازبین"]
[null,null,"زیرجلد آلبوم","تأیید","عدم نیاز","عدم تأیید با ذکر توضیحات"]
[null,1,"کاربری بنا و نشانی پروژه درج شده است."]
[null,{"$f":"B15+1","v":2},"تعداد طبقات طراحی درج شده است."]
[null,3,"نوع اسکلت، سقف و مهاربندی جانبی درج شده است."]
[null,{"$f":"B17+1","v":4},"سیستم سرمایش وگرمایش مشخص شده است."]
[null,{"$f":"B18+1","v":5},"نوع آسانسور مشخص شده است."]
[null,{"$f":"B19+1","v":6},"سیستم خاص تاسیسات برقی(در صورت وجود) درج شده است."]
[null,"ردیف",4,"دیدگاه طراح",null,"دیدگاه بازبین"]
[null,null,"تصاویر سه بعدی خارجی","تأیید","عدم نیاز","عدم تأیید با ذکر توضیحات"]
[null,1,"سه بعدی(های)رنگی از نمای روز ارائه شده است."]
[null,{"$f":"B23+1","v":2},"سه بعدی(های)رنگی از نمای شب ارائه شده است."]
[null,{"$f":"B24+1","v":3},"سه بعدی(های)رنگی از نمای پنجم ارائه شده است."]
[null,"ردیف",5,"دیدگاه طراح",null,"دیدگاه بازبین"]
[null,null,"فهرست و جدول متراژ","تأیید","عدم نیاز","عدم تأیید با ذکر توضیحات"]
[null,1,"عنوان و شماره صفحه نقشه درج شده است."]
[null,2,"جدول متراژ ارایه شده است."]
[null,"ردیف",6,"دیدگاه طراح",null,"دیدگاه بازبین"]
[null,null,"نکات عمومی و ملاحظات","تأیید","عدم نیاز","عدم تأیید با ذکر توضیحات"]
[null,1," توضیحات مرتیط با پروژه ارائه شده است."]
[null,"ردیف",7,"دیدگاه طراح",null,"دیدگاه بازبین"]
[null,null,"معرفی موقیعت","تأیید","عدم نیاز","عدم تأیید با ذکر توضیحات"]
[null,1,"دسترسی از گذر اصلی تا محل ملک با ذکر عرض معبر ترسیم شده است."]
[null,{"$f":"B35+1","v":2},"تصویر هواییgoogle و مختصاتUTM درج شده است."]
[null,3,".عکس دو پلاک متصل به ملک ارائه شده است"]
[null,4,"ترازهای ارتفاعی پلاک های متصل به ملک درج شده است."]
[null,"ردیف",8,"دیدگاه طراح",null,"دیدگاه بازبین"]
[null,null,"پلان سایت","تأیید","عدم نیاز","عدم تأیید با ذکر توضیحات"]
[null,1,"کدهای ارتفاعی ملک بر اساس معابر دسترسی آن درج شده است."]
[null,2,"ابعاد، مساحت زمین و سطح اشغال مجاز درج شده است."]
[null,3,"میزان تعریض معابر و پیشامدگی مجاورین درج شده است."]
[null,4,"جهت شمال مشخص شده است."]
[null,5,"پیشامدگی های مجاز ترسیم شده است."]
[null,6,"راستای پلاک های مجاور(از هر طرف2پلاک)ترسیم شده است."]
[null,7,"درز انقطاع همجواری ترسیم شده است."]
[null,"ردیف","9پلان اندازه گذاری","دیدگاه طراح",null,"دیدگاه بازبین"]
[null,null,"9-1کلیات","تأیید","عدم نیاز","عدم تأیید با ذکر توضیحات"]
[null,1,"خط نازک کاری نما، خط برش و درز انقطاع در پلان ها ترسیم شده است."]
[null,2," خط نمای جبهه مشرف به همسایه در پلاک‌های شمالی ترسیم شده است. "]
[null,3,"ستون گذاری،‌ اکس بندی و مهاربندی جانبی ترسیم شده است."]
[null,4,"اندازه گذاری پلان ها بر مبنای سفت کاری انجام شده است."]
[null,5,"ضخامت دیوار و ترسیم مناسب آن رعایت شده است."]
[null,6,"نام فضاها، مساحت واحدها و کدهای ارتفاعی قید شده است."]
[null,7,"درها از نظر موقعیت و اندازه به صورت استاندارد ترسیم شده است."]
[null,8,"تیپ بندی درها و پنجره ها نمایش داده شده است."]
[null,9,"خطوط نمایش سقف کاذب ترسیم شده است."]
[null,10,"اشراف پنجره‌های غیر جنوبی، رعایت شده است."]
[null,"ردیف","9پلان اندازه گذاری","دیدگاه طراح",null,"دیدگاه بازبین"]
[null,null,"9-2داکتهای تاسیساتی","تأیید","عدم نیاز","عدم تأیید با ذکر توضیحات"]
[null,1," داکت تأسیسات برقی ترسیم شده است."]
[null,{"$f":"B62+1","v":2},"داکت های تاسیسات مکانیکی (تهویه، فاضلاب، باران و آتش نشانی) ترسیم شده اند."]
[null,3,"داکت سیستم سرمایش/گرمایش ترسیم شده است.  "]
[null,{"$f":"B64+1","v":4},"داکت تهویه پارکینگ ترسیم شده است."]
[null,"ردیف","9پلان اندازه گذاری","دیدگاه طراح",null,"دیدگاه بازبین"]
[null,null,"9-3پارکینگ","تأیید","عدم نیاز","عدم تأیید با ذکر توضیحات"]
[null,1,"عرض مناسب دسترسی به اتاق تاسیسات، ورودی و انبارهای گروهی در صورت عبور از محل توقف خودروها، رعایت و با اختلاف ارتفاع مشخص شده است."]
[null,{"$f":"B68+1","v":2},"طول پیشروی استاندارد و ارتفاع سرگیری رمپ رعایت و مشخص شده است."]
[null,3,"ابعاد، جانمایی و شعاع گردش خودروها رعایت شده است."]
[null,"ردیف","9پلان اندازه گذاری","دیدگاه طراح",null,"دیدگاه بازبین"]
[null,null,"9-4ابعاد فضاها","تأیید","عدم نیاز","عدم تأیید با ذکر توضیحات"]
[null,1,"حداقل ابعاد فضاهای اقامت رعایت شده است."]
[null,{"$f":"B73+1","v":2},"حداقل عرض 215 سانتیمتر برای آشپزخانه رعایت شده است."]
[null,{"$f":"B74+1","v":3},"حداقل عرض 180 سانتیمتر برای آبدارخانه(بدون امکان پخت و پز) رعایت شده است."]
[null,{"$f":"B75+1","v":4},"حداقل عرض راهروها رعایت شده است."]
[null,{"$f":"B76+1","v":5},"حداقل عرض سرویس های بهداشتی رعایت شده است."]
[null,"ردیف","9پلان اندازه گذاری","دیدگاه طراح",null,"دیدگاه بازبین"]
[null,null,"9-5پلکان و آسانسور","تأیید","عدم نیاز","عدم تأیید با ذکر توضیحات"]
[null,1,"حداقل ابعاد استاندارد پله و پاگرد رعایت شده است."]
[null,{"$f":"B80+1","v":2},"تعداد و جهت حرکت پله مشخص گردیده است."]
[null,3,"عدم تداخل عناصر سازه ای با عملکرد پلکان و آسانسور رعایت شده است."]
[null,4,"ارتفاع سرگیر پله(205 سانتیمتر) رعایت شده است."]
[null,5,"جانپناه پله ترسیم شده است."]
[null,6,"ستون گذاری و اندازه گذاری خرپشته انجام شده است."]
[null,7,"تعداد پله های دسترسی طبقات با احتساب ارتفاع حداکثر 18 و کف حداقل 28 سانتیمتر و رعایت نسبت  ارتفاع و کف برای هر پله محاسبه و ترسیم شده است. "]
[null,"ردیف","10پلان مبلمان","دیدگاه طراح",null,"دیدگاه بازبین"]
[null,null,"10-1کلیات","تأیید","عدم نیاز","عدم تأیید با ذکر توضیحات"]
[null,1,"آکس‌بندی، ستون گذاری و موقعیت مهاربندی ترسیم شده است."]
[null,2,"درها و پنجره ها ترسیم شده است."]
[null,3,"کدهای ارتفاعی درج شده است."]
[null,4,"ادرس دهی جزییات و بزرگنمایی های نقشه درج شده است."]
[null,"ردیف","10پلان مبلمان","دیدگاه طراح",null,"دیدگاه بازبین"]
[null,null,"10-2نشیمن پذیرایی","تأیید","عدم نیاز","عدم تأیید با ذکر توضیحات"]
[null,1,"مبلمان متناسب پذیرایی و غذاخوری ترسیم شده است."]
[null,{"$f":"B95+1","v":2},"مبلمان متناسب تماشای تلویزیون ترسیم شده است."]
[null,3,"رادیاتورها و یونیت اسپلیت ترسیم شده است."]
[null,"ردیف","10پلان مبلمان","دیدگاه طراح",null,"دیدگاه بازبین"]
[null,null,"10-3آشپزخانه","تأیید","عدم نیاز","عدم تأیید با ذکر توضیحات"]
[null,1,"یخچال، سینک ظرفشویی و اجاق گاز جانمایی شده اند."]
[null,2,"موقعیت پکیج (در صورت قرارگیری در آشپزخانه) مشخص شده است."]
[null,{"$f":"B101+1","v":3},"ماشین ظرفشویی و لباسشویی (در صورت قرارگیری در آشپزخانه) ترسیم شده اند."]
[null,"ردیف","10پلان مبلمان","دیدگاه طراح",null,"دیدگاه بازبین"]
[null,null,"10-4اتاق خواب","تأیید","عدم نیاز","عدم تأیید با ذکر توضیحات"]
[null,1,"کمدها، تخت و میز آرایش (کار) ترسیم شده است."]
[null,2,"رادیاتورها و یونیت اسپلیت ترسیم شده است."]
[null,"ردیف","10پلان مبلمان","دیدگاه طراح",null,"دیدگاه بازبین"]
[null,null,"10-5حمام و سرویس","تأیید","عدم نیاز","عدم تأیید با ذکر توضیحات"]
[null,1,"توالت ایرانی و فرنگی ترسیم شده است."]
[null,2,"روشویی، دوش و حوله خشک کن ترسیم شده است."]
[null,"ردیف","10پلان مبلمان","دیدگاه طراح",null,"دیدگاه بازبین"]
[null,null,"10-6مشاعات","تأیید","عدم نیاز","عدم تأیید با ذکر توضیحات"]
[null,1,"محل توقف و تعداد خودرو  مشخص شده است."]
[null,{"$f":"B113+1","v":2},"مبلمان لابی ترسیم شده است."]
[null,{"$f":"B114+1","v":3},"کنتور آب، گاز و برق جانمایی شده اند."]
[null,{"$f":"B115+1","v":4},"رایزهای عموی تاسیسات و تابلوهای آتش نشانی مشخص شده است."]
[null,{"$f":"B116+1","v":5}," فضای مورد نیاز تاسیسات پیش بینی و ترسیم شده است."]
[null,{"$f":"B117+1","v":6},"مبلمان، فضای سبز  و کلیه درختان موجود حیاط ترسیم شده است."]
[null,"ردیف",11,"دیدگاه طراح",null,"دیدگاه بازبین"]
[null,null,"پلان شیب بندی بام","تأیید","عدم نیاز","عدم تأیید با ذکر توضیحات"]
[null,1," آکس‌بندی مشخص شده است."]
[null,{"$f":"B121+1","v":2},"شیب بندی بام اصلی  و خرپشته ترسیم شده است."]
[null,3,"حوزه جمع آوری آب باران و محل خروجی مشخص شده است."]
[null,4,"سیستم های تاسیساتی روی بام، جانمایی شده اند."]
[null,{"$f":"B124+1","v":5},"موقعیت داکت های تأسیساتی مشخص شده است"]
[null,{"$f":"B125+1","v":6},"کدهای ارتفاعی و اندازه گذاری ها انجام شده است."]
[null,"ردیف",12,"دیدگاه طراح",null,"دیدگاه بازبین"]
[null,null,"مقطع","تأیید","عدم نیاز","عدم تأیید با ذکر توضیحات"]
[null,1," آکس‌بندی مشخص شده است."]
[null,2,"با پلان ها انطباق دارد."]
[null,3,"تراز روی فنداسیون مشخص شده است."]
[null,4,"با نماها انطباق دارد."]
[null,5,"پله ها به درستی ترسیم شده است."]
[null,6,"تیرهای اصلی سازه در مقطع نمایش داده شود."]
[null,7,"جانپناه ها و نرده پله ترسیم شده اند."]
[null,8,"کدهای ارتفاعی طبقات، پاگرد پله و پیش آمدگی ها نمایش داده شده است."]
[null,9,"کد ارتفاعی پنجره ها، جانپناه و درها نمایش داده شده است."]
[null,10,"سقف کاذب ترسیم شده است."]
[null,"ردیف",13,"دیدگاه طراح",null,"دیدگاه بازبین"]
[null,null,"نما","تأیید","عدم نیاز","عدم تأیید با ذکر توضیحات"]
[null,1," آکس‌بندی مشخص شده است."]
[null,{"$f":"B141+1","v":2},"با پلان ها انطباق دارد."]
[null,3," با مقاطع انطباق دارد."]
[null,4,"معرفی مصالح با ذکر کد، ابعاد و رنگ مشخص شده است."]
[null,5,"خط‌چین سقف ها ترسیم شده است."]
[null,6,"جزییات لازم جهت اجرا ی نما ترسیم شده است."]
[null,7,"تیپ بندی در و پنجره انجام شده است."]
[null,8,"کد ارتفاعی پنجره ها، پاگرد پله و جانپناه نمایش داده شده است."]
[null,9,"کد ارتفاعی سایر اجزای نما حسب ضرورت درج شده است."]
[null,10,"موقعیت wall section مشخص شده است."]
[null,"ردیف",14,"دیدگاه طراح",null,"دیدگاه بازبین"]
[null,null,"پلان پوشش سقف ها","تأیید","عدم نیاز","عدم تأیید با ذکر توضیحات"]
[null,1," آکس‌بندی مشخص شده است."]
[null,{"$f":"B153+1","v":2},"موقعیت و ابعاد بازشوهای سقف مشخص شده است."]
[null,{"$f":"B154+1","v":3},"شکل و اندازه گذاری لبه سقف در محدوده نما مشخص شده است."]
[null,"ردیف",15,"دیدگاه طراح",null,"دیدگاه بازبین"]
[null,null,"تیپ بندی در و پنجره","تأیید","عدم نیاز","عدم تأیید با ذکر توضیحات"]
[null,1,"تعداد و جهت بازشوها مشخص شده است."]
[null,{"$f":"B158+1","v":2},"جنس و رنگ پروفیل ها مشخص شده است."]
[null,3,"رنگ و تعداد جداره شیشه ها مشخص شده است."]

{"sheet":"مرحله دوم-گروه ج","index":3,"n_rows":172,"n_cols":6,"rows_kept":172,"cut":false,"hidden":false,"merged":[[0,1,0,5],[1,1,2,1],[1,3,1,4],[7,1,8,1],[7,3,7,4],[25,3,25,4],[12,1,13,1],[12,3,12,4],[20,1,21,1],[20,3,20,4],[25,1,26,1],[70,3,70,4],[77,1,78,1],[77,3,77,4],[86,1,87,1],[65,3,65,4],[47,1,48,1],[106,1,107,1],[106,3,106,4],[38,3,38,4],[29,1,30,1],[29,3,29,4],[32,1,33,1],[32,3,32,4],[38,1,39,1],[86,3,86,4],[70,1,71,1],[47,3,47,4],[59,1,60,1],[59,3,59,4],[65,1,66,1],[102,3,102,4],[92,1,93,1],[92,3,92,4],[97,1,98,1],[97,3,97,4],[102,1,103,1],[110,1,111,1],[110,3,110,4],[118,1,119,1],[118,3,118,4],[167,1,168,1],[167,3,167,4],[162,3,162,4],[158,1,159,1],[158,3,158,4],[162,1,163,1],[150,3,150,4],[126,1,127,1],[126,3,126,4],[138,1,139,1],[138,3,138,4],[150,1,151,1]]}
[null,"سیاهه ی بازبینی نقشه های معماری مرحله دوم (گروه «ج» )"]
[null,"ردیف",1,"دیدگاه طراح",null,"دیدگاه بازبین"]
[null,null,"کلیات آلبوم","تأیید","عدم نیاز","عدم تأیید با ذکر توضیحات"]
[null,1,"کلیه نقشه ها با مقیاس مشخص ارایه شده است."]
[null,2,"شماره گذاری صفحات آلبوم رعایت شده است."]
[null,{"$f":"B5+1","v":3},"ضخامت خطوط و خوانایی چاپ نقشه رعایت شده است."]
[null,{"$f":"B6+1","v":4},"صحافی آلبوم انجام شده است."]
[null,"ردیف",2,"دیدگاه طراح",null,"دیدگاه بازبین"]
[null,null,"روی آلبوم","تأیید","عدم نیاز","عدم تأیید با ذکر توضیحات"]
[null,1,"عنوان ساختمان درج شده است."]
[null,2,"نام صاحب کار درج شده است."]
[null,3,"کد یکتا یا کد نوسازی شهرداری درج شده است."]
[null,"ردیف",3,"دیدگاه طراح",null,"دیدگاه بازبین"]
[null,null,"زیرجلد آلبوم","تأیید","عدم نیاز","عدم تأیید با ذکر توضیحات"]
[null,1,"کاربری بنا و نشانی پروژه درج شده است."]
[null,{"$f":"B15+1","v":2},"تعداد طبقات طراحی درج شده است."]
[null,3,"نوع اسکلت، سقف و مهاربندی جانبی درج شده است."]
[null,{"$f":"B17+1","v":4},"سیستم سرمایش وگرمایش مشخص شده است."]
[null,{"$f":"B18+1","v":5},"نوع آسانسور مشخص شده است."]
[null,{"$f":"B19+1","v":6},"سیستم خاص تاسیسات برقی(در صورت وجود) درج شده است."]
[null,"ردیف",4,"دیدگاه طراح",null,"دیدگاه بازبین"]
[null,null,"تصاویر سه بعدی خارجی","تأیید","عدم نیاز","عدم تأیید با ذکر توضیحات"]
[null,1,"سه بعدی(های)رنگی از نمای روز ارائه شده است."]
[null,{"$f":"B23+1","v":2},"سه بعدی(های)رنگی از نمای شب ارائه شده است."]
[null,{"$f":"B24+1","v":3},"سه بعدی(های)رنگی از نمای پنجم ارائه شده است."]
[null,"ردیف",5,"دیدگاه طراح",null,"دیدگاه بازبین"]
[null,null,"فهرست و جدول متراژ","تأیید","عدم نیاز","عدم تأیید با ذکر توضیحات"]
[null,1,"عنوان و شماره صفحه نقشه درج شده است."]
[null,2,"جدول متراژ ارایه شده است."]
[null,"ردیف",6,"دیدگاه طراح",null,"دیدگاه بازبین"]
[null,null,"نکات عمومی و ملاحظات","تأیید","عدم نیاز","عدم تأیید با ذکر توضیحات"]
[null,1," توضیحات مرتیط با پروژه ارائه شده است."]
[null,"ردیف",7,"دیدگاه طراح",null,"دیدگاه بازبین"]
[null,null,"معرفی موقیعت","تأیید","عدم نیاز","عدم تأیید با ذکر توضیحات"]
[null,1,"دسترسی از گذر اصلی تا محل ملک با ذکر عرض معبر ترسیم شده است."]
[null,{"$f":"B35+1","v":2},"تصویر هواییgoogle و مختصاتUTM درج شده است."]
[null,3,".عکس دو پلاک متصل به ملک ارائه شده است"]
[null,4,"ترازهای ارتفاعی پلاک های متصل به ملک درج شده است."]
[null,"ردیف",8,"دیدگاه طراح",null,"دیدگاه بازبین"]
[null,null,"پلان سایت","تأیید","عدم نیاز","عدم تأیید با ذکر توضیحات"]
[null,1,"کدهای ارتفاعی ملک بر اساس معابر دسترسی آن درج شده است."]
[null,2,"ابعاد، مساحت زمین و سطح اشغال مجاز درج شده است."]
[null,3,"میزان تعریض معابر و پیشامدگی مجاورین درج شده است."]
[null,4,"جهت شمال مشخص شده است."]
[null,5,"پیشامدگی های مجاز ترسیم شده است."]
[null,6,"راستای پلاک های مجاور(از هر طرف2پلاک)ترسیم شده است."]
[null,7,"درز انقطاع همجواری ترسیم شده است."]
[null,"ردیف","9پلان اندازه گذاری","دیدگاه طراح",null,"دیدگاه بازبین"]
[null,null,"9-1کلیات","تأیید","عدم نیاز","عدم تأیید با ذکر توضیحات"]
[null,1,"خط نازک کاری نما، خط برش و درز انقطاع در پلان ها ترسیم شده است."]
[null,2," خط نمای جبهه مشرف به همسایه در پلاک‌های شمالی ترسیم شده است. "]
[null,3,"ستون گذاری،‌ اکس بندی و مهاربندی جانبی ترسیم شده است."]
[null,4,"اندازه گذاری پلان ها بر مبنای سفت کاری انجام شده است."]
[null,5,"ضخامت دیوار و ترسیم مناسب آن رعایت شده است."]
[null,6,"نام فضاها، مساحت واحدها و کدهای ارتفاعی قید شده است."]
[null,7,"درها از نظر موقعیت و اندازه به صورت استاندارد ترسیم شده است."]
[null,8,"تیپ بندی درها و پنجره ها نمایش داده شده است."]
[null,9,"خطوط نمایش سقف کاذب ترسیم شده است."]
[null,10,"اشراف پنجره‌های غیر جنوبی، رعایت شده است."]
[null,"ردیف","9پلان اندازه گذاری","دیدگاه طراح",null,"دیدگاه بازبین"]
[null,null,"9-2داکتهای تاسیساتی","تأیید","عدم نیاز","عدم تأیید با ذکر توضیحات"]
[null,1," داکت تأسیسات برقی ترسیم شده است."]
[null,{"$f":"B62+1","v":2},"داکت های تاسیسات مکانیکی (تهویه، فاضلاب، باران و آتش نشانی) ترسیم شده اند."]
[null,3,"داکت سیستم سرمایش/گرمایش ترسیم شده است.  "]
[null,{"$f":"B64+1","v":4},"داکت تهویه پارکینگ ترسیم شده است."]
[null,"ردیف","9پلان اندازه گذاری","دیدگاه طراح",null,"دیدگاه بازبین"]
[null,null,"9-3پارکینگ","تأیید","عدم نیاز","عدم تأیید با ذکر توضیحات"]
[null,1,"عرض مناسب دسترسی به اتاق تاسیسات، ورودی و انبارهای گروهی در صورت عبور از محل توقف خودروها، رعایت و با اختلاف ارتفاع مشخص شده است."]
[null,{"$f":"B68+1","v":2},"طول پیشروی استاندارد و ارتفاع سرگیری رمپ رعایت و مشخص شده است."]
[null,3,"ابعاد، جانمایی و شعاع گردش خودروها رعایت شده است."]
[null,"ردیف","9پلان اندازه گذاری","دیدگاه طراح",null,"دیدگاه بازبین"]
[null,null,"9-4ابعاد فضاها","تأیید","عدم نیاز","عدم تأیید با ذکر توضیحات"]
[null,1,"حداقل ابعاد فضاهای اقامت رعایت شده است."]
[null,{"$f":"B73+1","v":2},"حداقل عرض 215 سانتیمتر برای آشپزخانه رعایت شده است."]
[null,{"$f":"B74+1","v":3},"حداقل عرض 180 سانتیمتر برای آبدارخانه(بدون امکان پخت و پز) رعایت شده است."]
[null,{"$f":"B75+1","v":4},"حداقل عرض راهروها رعایت شده است."]
[null,{"$f":"B76+1","v":5},"حداقل عرض سرویس های بهداشتی رعایت شده است."]
[null,"ردیف","9پلان اندازه گذاری","دیدگاه طراح",null,"دیدگاه بازبین"]
[null,null,"9-5پلکان و آسانسور","تأیید","عدم نیاز","عدم تأیید با ذکر توضیحات"]
[null,1,"حداقل ابعاد استاندارد پله و پاگرد رعایت شده است."]
[null,{"$f":"B80+1","v":2},"تعداد و جهت حرکت پله مشخص گردیده است."]
[null,3,"عدم تداخل عناصر سازه ای با عملکرد پلکان و آسانسور رعایت شده است."]
[null,4,"ارتفاع سرگیر پله(205 سانتیمتر) رعایت شده است."]
[null,5,"جانپناه پله ترسیم شده است."]
[null,6,"ستون گذاری و اندازه گذاری خرپشته انجام شده است."]
[null,7,"تعداد پله های دسترسی طبقات با احتساب ارتفاع حداکثر 18 و کف حداقل 28 سانتیمتر و رعایت نسبت  ارتفاع و کف برای هر پله محاسبه و ترسیم شده است. "]
[null,"ردیف","10پلان مبلمان","دیدگاه طراح",null,"دیدگاه بازبین"]
[null,null,"10-1کلیات","تأیید","عدم نیاز","عدم تأیید با ذکر توضیحات"]
[null,1,"آکس‌بندی، ستون گذاری و موقعیت مهاربندی ترسیم شده است."]
[null,2,"درها و پنجره ها ترسیم شده است."]
[null,3,"کدهای ارتفاعی درج شده است."]
[null,4,"ادرس دهی جزییات و بزرگنمایی های نقشه درج شده است."]
[null,"ردیف","10پلان مبلمان","دیدگاه طراح",null,"دیدگاه بازبین"]
[null,null,"10-2نشیمن پذیرایی","تأیید","عدم نیاز","عدم تأیید با ذکر توضیحات"]
[null,1,"مبلمان متناسب پذیرایی و غذاخوری ترسیم شده است."]
[null,{"$f":"B95+1","v":2},"مبلمان متناسب تماشای تلویزیون ترسیم شده است."]
[null,3,"رادیاتورها و یونیت اسپلیت ترسیم شده است."]
[null,"ردیف","10پلان مبلمان","دیدگاه طراح",null,"دیدگاه بازبین"]
[null,null,"10-3آشپزخانه","تأیید","عدم نیاز","عدم تأیید با ذکر توضیحات"]
[null,1,"یخچال، سینک ظرفشویی و اجاق گاز جانمایی شده اند."]
[null,2,"موقعیت پکیج (در صورت قرارگیری در آشپزخانه) مشخص شده است."]
[null,{"$f":"B101+1","v":3},"ماشین ظرفشویی و لباسشویی (در صورت قرارگیری در آشپزخانه) ترسیم شده اند."]
[null,"ردیف","10پلان مبلمان","دیدگاه طراح",null,"دیدگاه بازبین"]
[null,null,"10-4اتاق خواب","تأیید","عدم نیاز","عدم تأیید با ذکر توضیحات"]
[null,1,"کمدها، تخت و میز آرایش (کار) ترسیم شده است."]
[null,2,"رادیاتورها و یونیت اسپلیت ترسیم شده است."]
[null,"ردیف","10پلان مبلمان","دیدگاه طراح",null,"دیدگاه بازبین"]
[null,null,"10-5حمام و سرویس","تأیید","عدم نیاز","عدم تأیید با ذکر توضیحات"]
[null,1,"توالت ایرانی و فرنگی ترسیم شده است."]
[null,2,"روشویی، دوش و حوله خشک کن ترسیم شده است."]
[null,"ردیف","10پلان مبلمان","دیدگاه طراح",null,"دیدگاه بازبین"]
[null,null,"10-6مشاعات","تأیید","عدم نیاز","عدم تأیید با ذکر توضیحات"]
[null,1,"محل توقف و تعداد خودرو  مشخص شده است."]
[null,{"$f":"B113+1","v":2},"مبلمان لابی ترسیم شده است."]
[null,{"$f":"B114+1","v":3},"کنتور آب، گاز و برق جانمایی شده اند."]
[null,{"$f":"B115+1","v":4},"رایزهای عموی تاسیسات و تابلوهای آتش نشانی مشخص شده است."]
[null,{"$f":"B116+1","v":5}," فضای مورد نیاز تاسیسات پیش بینی و ترسیم شده است."]
[null,{"$f":"B117+1","v":6},"مبلمان، فضای سبز  و کلیه درختان موجود حیاط ترسیم شده است."]
[null,"ردیف",11,"دیدگاه طراح",null,"دیدگاه بازبین"]
[null,null,"پلان شیب بندی بام","تأیید","عدم نیاز","عدم تأیید با ذکر توضیحات"]
[null,1," آکس‌بندی مشخص شده است."]
[null,{"$f":"B121+1","v":2},"شیب بندی بام اصلی  و خرپشته ترسیم شده است."]
[null,3,"حوزه جمع آوری آب باران و محل خروجی مشخص شده است."]
[null,4,"سیستم های تاسیساتی روی بام، جانمایی شده اند."]
[null,{"$f":"B124+1","v":5},"موقعیت داکت های تأسیساتی مشخص شده است"]
[null,{"$f":"B125+1","v":6},"کدهای ارتفاعی و اندازه گذاری ها انجام شده است."]
[null,"ردیف",12,"دیدگاه طراح",null,"دیدگاه بازبین"]
[null,null,"مقطع","تأیید","عدم نیاز","عدم تأیید با ذکر توضیحات"]
[null,1," آکس‌بندی مشخص شده است."]
[null,2,"با پلان ها انطباق دارد."]
[null,3,"تراز روی فنداسیون مشخص شده است."]
[null,4,"با نماها انطباق دارد."]
[null,5,"پله ها به درستی ترسیم شده است."]
[null,6,"تیرهای اصلی سازه در مقطع نمایش داده شود."]
[null,7,"جانپناه ها و نرده پله ترسیم شده اند."]
[null,8,"کدهای ارتفاعی طبقات، پاگرد پله و پیش آمدگی ها نمایش داده شده است."]
[null,9,"کد ارتفاعی پنجره ها، جانپناه و درها نمایش داده شده است."]
[null,10,"سقف کاذب ترسیم شده است."]
[null,"ردیف",13,"دیدگاه طراح",null,"دیدگاه بازبین"]
[null,null,"نما","تأیید","عدم نیاز","عدم تأیید با ذکر توضیحات"]
[null,1," آکس‌بندی مشخص شده است."]
[null,{"$f":"B141+1","v":2},"با پلان ها انطباق دارد."]
[null,3," با مقاطع انطباق دارد."]
[null,4,"معرفی مصالح با ذکر کد، ابعاد و رنگ مشخص شده است."]
[null,5,"خط‌چین سقف ها ترسیم شده است."]
[null,6,"جزییات لازم جهت اجرا ی نما ترسیم شده است."]
[null,7,"تیپ بندی در و پنجره انجام شده است."]
[null,8,"کد ارتفاعی پنجره ها، پاگرد پله و جانپناه نمایش داده شده است."]
[null,9,"کد ارتفاعی سایر اجزای نما حسب ضرورت درج شده است."]
[null,10,"موقعیت wall section مشخص شده است."]
[null,"ردیف",14,"دیدگاه طراح",null,"دیدگاه بازبین"]
[null,null,"پلان معکوس سقف (سقف کاذب)","تأیید","عدم نیاز","عدم تأیید با ذکر توضیحات"]
[null,1," آکس‌بندی مشخص شده است."]
[null,{"$f":"B153+1","v":2},"نوع مصالح مصرفی مشخص شده است."]
[null,{"$f":"B154+1","v":3},"معرفی فضا انجام شده است."]
[null,{"$f":"B155+1","v":4},"جانمایی المان های نوری مشخص شده است."]
[null,{"$f":"B156+1","v":5},"کدهای ارتفاعی اختلاف سطوح درج شده است."]
[null,{"$f":"B157+1","v":6},"جزییات اجرایی لازم ارایه شده است."]
[null,"ردیف",15,"دیدگاه طراح",null,"دیدگاه بازبین"]
[null,null,"پلان جانمایی والپست","تأیید","عدم نیاز","عدم تأیید با ذکر توضیحات"]
[null,1," آکس‌بندی مشخص شده است."]
[null,{"$f":"B161+1","v":2},"اندازه گذاری محل وال پست ها انجام شده است."]
[null,"ردیف",16,"دیدگاه طراح",null,"دیدگاه بازبین"]
[null,null,"پلان پوشش سقف ها","تأیید","عدم نیاز","عدم تأیید با ذکر توضیحات"]
[null,1," آکس‌بندی مشخص شده است."]
[null,{"$f":"B165+1","v":2},"موقعیت و ابعاد بازشوهای سقف مشخص شده است."]
[null,{"$f":"B166+1","v":3},"شکل و اندازه گذاری لبه سقف در محدوده نما مشخص شده است."]
[null,"ردیف",17,"دیدگاه طراح",null,"دیدگاه بازبین"]
[null,null,"تیپ بندی در و پنجره","تأیید","عدم نیاز","عدم تأیید با ذکر توضیحات"]
[null,1,"تعداد و جهت بازشوها مشخص شده است."]
[null,{"$f":"B170+1","v":2},"جنس و رنگ پروفیل ها مشخص شده است."]
[null,3,"رنگ و تعداد جداره شیشه ها مشخص شده است."]

{"sheet":"مرحله دوم-گروه د","index":4,"n_rows":238,"n_cols":6,"rows_kept":238,"cut":false,"hidden":false,"merged":[[12,1,13,1],[12,3,12,4],[0,1,0,5],[1,1,2,1],[1,3,1,4],[7,1,8,1],[7,3,7,4],[20,1,21,1],[20,3,20,4],[25,1,26,1],[25,3,25,4],[29,1,30,1],[29,3,29,4],[32,1,33,1],[32,3,32,4],[38,1,39,1],[38,3,38,4],[47,1,48,1],[47,3,47,4],[59,1,60,1],[59,3,59,4],[65,1,66,1],[65,3,65,4],[70,1,71,1],[70,3,70,4],[77,1,78,1],[77,3,77,4],[86,1,87,1],[86,3,86,4],[92,1,93,1],[92,3,92,4],[97,1,98,1],[97,3,97,4],[102,1,103,1],[102,3,102,4],[106,1,107,1],[106,3,106,4],[110,1,111,1],[110,3,110,4],[118,1,119,1],[118,3,118,4],[126,1,127,1],[126,3,126,4],[138,1,139,1],[138,3,138,4],[150,1,151,1],[150,3,150,4],[158,1,159,1],[158,3,158,4],[164,1,165,1],[164,3,164,4],[168,1,169,1],[168,3,168,4],[173,1,174,1],[173,3,173,4],[179,1,180,1],[179,3,179,4],[188,1,189,1],[188,3,188,4],[193,1,194,1],[193,3,193,4],[198,1,199,1],[198,3,198,4],[204,1,205,1],[204,3,204,4],[211,1,212,1],[211,3,211,4],[233,1,234,1],[233,3,233,4],[216,1,217,1],[216,3,216,4],[221,1,222,1],[221,3,221,4],[224,1,225,1],[224,3,224,4]]}
[null,"سیاهه ی بازبینی نقشه های معماری مرحله دوم (گروه «د» )"]
[null,"ردیف",1,"دیدگاه طراح",null,"دیدگاه بازبین"]
[null,null,"کلیات آلبوم","تأیید","عدم نیاز","عدم تأیید با ذکر توضیحات"]
[null,1,"کلیه نقشه ها با مقیاس مشخص ارایه شده است."]
[null,2,"شماره گذاری صفحات آلبوم رعایت شده است."]
[null,{"$f":"B5+1","v":3},"ضخامت خطوط و خوانایی چاپ نقشه رعایت شده است."]
[null,{"$f":"B6+1","v":4},"صحافی آلبوم انجام شده است."]
[null,"ردیف",2,"دیدگاه طراح",null,"دیدگاه بازبین"]
[null,null,"روی آلبوم","تأیید","عدم نیاز","عدم تأیید با ذکر توضیحات"]
[null,1,"عنوان ساختمان درج شده است."]
[null,2,"نام صاحب کار درج شده است."]
[null,3,"کد یکتا یا کد نوسازی شهرداری درج شده است."]
[null,"ردیف",3,"دیدگاه طراح",null,"دیدگاه بازبین"]
[null,null,"زیرجلد آلبوم","تأیید","عدم نیاز","عدم تأیید با ذکر توضیحات"]
[null,1,"کاربری بنا و نشانی پروژه درج شده است."]
[null,{"$f":"B15+1","v":2},"تعداد طبقات طراحی درج شده است."]
[null,3,"نوع اسکلت، سقف و مهاربندی جانبی درج شده است."]
[null,{"$f":"B17+1","v":4},"سیستم سرمایش وگرمایش مشخص شده است."]
[null,{"$f":"B18+1","v":5},"نوع آسانسور مشخص شده است."]
[null,{"$f":"B19+1","v":6},"سیستم خاص تاسیسات برقی(در صورت وجود) درج شده است."]
[null,"ردیف",4,"دیدگاه طراح",null,"دیدگاه بازبین"]
[null,null,"تصاویر سه بعدی خارجی","تأیید","عدم نیاز","عدم تأیید با ذکر توضیحات"]
[null,1,"سه بعدی(های)رنگی از نمای روز ارائه شده است."]
[null,{"$f":"B23+1","v":2},"سه بعدی(های)رنگی از نمای شب ارائه شده است."]
[null,{"$f":"B24+1","v":3},"سه بعدی(های)رنگی از نمای پنجم ارائه شده است."]
[null,"ردیف",5,"دیدگاه طراح",null,"دیدگاه بازبین"]
[null,null,"فهرست و جدول متراژ","تأیید","عدم نیاز","عدم تأیید با ذکر توضیحات"]
[null,1,"عنوان و شماره صفحه نقشه درج شده است."]
[null,2,"جدول متراژ ارایه شده است."]
[null,"ردیف",6,"دیدگاه طراح",null,"دیدگاه بازبین"]
[null,null,"نکات عمومی و ملاحظات","تأیید","عدم نیاز","عدم تأیید با ذکر توضیحات"]
[null,1," توضیحات مرتیط با پروژه ارائه شده است."]
[null,"ردیف",7,"دیدگاه طراح",null,"دیدگاه بازبین"]
[null,null,"معرفی موقیعت","تأیید","عدم نیاز","عدم تأیید با ذکر توضیحات"]
[null,1,"دسترسی از گذر اصلی تا محل ملک با ذکر عرض معبر ترسیم شده است."]
[null,{"$f":"B35+1","v":2},"تصویر هواییgoogle و مختصاتUTM درج شده است."]
[null,3,".عکس دو پلاک متصل به ملک ارائه شده است"]
[null,4,"ترازهای ارتفاعی پلاک های متصل به ملک درج شده است."]
[null,"ردیف",8,"دیدگاه طراح",null,"دیدگاه بازبین"]
[null,null,"پلان سایت","تأیید","عدم نیاز","عدم تأیید با ذکر توضیحات"]
[null,1,"کدهای ارتفاعی ملک بر اساس معابر دسترسی آن درج شده است."]
[null,2,"ابعاد، مساحت زمین و سطح اشغال مجاز درج شده است."]
[null,3,"میزان تعریض معابر و پیشامدگی مجاورین درج شده است."]
[null,4,"جهت شمال مشخص شده است."]
[null,5,"پیشامدگی های مجاز ترسیم شده است."]
[null,6,"راستای پلاک های مجاور(از هر طرف2پلاک)ترسیم شده است."]
[null,7,"درز انقطاع همجواری ترسیم شده است."]
[null,"ردیف","9پلان اندازه گذاری","دیدگاه طراح",null,"دیدگاه بازبین"]
[null,null,"9-1کلیات","تأیید","عدم نیاز","عدم تأیید با ذکر توضیحات"]
[null,1,"خط نازک کاری نما، خط برش و درز انقطاع در پلان ها ترسیم شده است."]
[null,2," خط نمای جبهه مشرف به همسایه در پلاک‌های شمالی ترسیم شده است. "]
[null,3,"ستون گذاری،‌ اکس بندی و مهاربندی جانبی ترسیم شده است."]
[null,4,"اندازه گذاری پلان ها بر مبنای سفت کاری انجام شده است."]
[null,5,"ضخامت دیوار و ترسیم مناسب آن رعایت شده است."]
[null,6,"نام فضاها، مساحت واحدها و کدهای ارتفاعی قید شده است."]
[null,7,"درها از نظر موقعیت و اندازه به صورت استاندارد ترسیم شده است."]
[null,8,"تیپ بندی درها و پنجره ها نمایش داده شده است."]
[null,9,"خطوط نمایش سقف کاذب ترسیم شده است."]
[null,10,"اشراف پنجره‌های غیر جنوبی، رعایت شده است."]
[null,"ردیف","9پلان اندازه گذاری","دیدگاه طراح",null,"دیدگاه بازبین"]
[null,null,"9-2داکتهای تاسیساتی","تأیید","عدم نیاز","عدم تأیید با ذکر توضیحات"]
[null,1," داکت تأسیسات برقی ترسیم شده است."]
[null,{"$f":"B62+1","v":2},"داکت های تاسیسات مکانیکی (تهویه، فاضلاب، باران و آتش نشانی) ترسیم شده اند."]
[null,3,"داکت سیستم سرمایش/گرمایش ترسیم شده است.  "]
[null,{"$f":"B64+1","v":4},"داکت تهویه پارکینگ ترسیم شده است."]
[null,"ردیف","9پلان اندازه گذاری","دیدگاه طراح",null,"دیدگاه بازبین"]
[null,null,"9-3پارکینگ","تأیید","عدم نیاز","عدم تأیید با ذکر توضیحات"]
[null,1,"عرض مناسب دسترسی به اتاق تاسیسات، ورودی و انبارهای گروهی در صورت عبور از محل توقف خودروها، رعایت و با اختلاف ارتفاع مشخص شده است."]
[null,{"$f":"B68+1","v":2},"طول پیشروی استاندارد و ارتفاع سرگیری رمپ رعایت و مشخص شده است."]
[null,3,"ابعاد، جانمایی و شعاع گردش خودروها رعایت شده است."]
[null,"ردیف","9پلان اندازه گذاری","دیدگاه طراح",null,"دیدگاه بازبین"]
[null,null,"9-4ابعاد فضاها","تأیید","عدم نیاز","عدم تأیید با ذکر توضیحات"]
[null,1,"حداقل ابعاد فضاهای اقامت رعایت شده است."]
[null,{"$f":"B73+1","v":2},"حداقل عرض 215 سانتیمتر برای آشپزخانه رعایت شده است."]
[null,{"$f":"B74+1","v":3},"حداقل عرض 180 سانتیمتر برای آبدارخانه(بدون امکان پخت و پز) رعایت شده است."]
[null,{"$f":"B75+1","v":4},"حداقل عرض راهروها رعایت شده است."]
[null,{"$f":"B76+1","v":5},"حداقل عرض سرویس های بهداشتی رعایت شده است."]
[null,"ردیف","9پلان اندازه گذاری","دیدگاه طراح",null,"دیدگاه بازبین"]
[null,null,"9-5پلکان و آسانسور","تأیید","عدم نیاز","عدم تأیید با ذکر توضیحات"]
[null,1,"حداقل ابعاد استاندارد پله و پاگرد رعایت شده است."]
[null,{"$f":"B80+1","v":2},"تعداد و جهت حرکت پله مشخص گردیده است."]
[null,3,"عدم تداخل عناصر سازه ای با عملکرد پلکان و آسانسور رعایت شده است."]
[null,4,"ارتفاع سرگیر پله(205 سانتیمتر) رعایت شده است."]
[null,5,"جانپناه پله ترسیم شده است."]
[null,6,"ستون گذاری و اندازه گذاری خرپشته انجام شده است."]
[null,7,"تعداد پله های دسترسی طبقات با احتساب ارتفاع حداکثر 18 و کف حداقل 28 سانتیمتر و رعایت نسبت  ارتفاع و کف برای هر پله محاسبه و ترسیم شده است. "]
[null,"ردیف","10پلان مبلمان","دیدگاه طراح",null,"دیدگاه بازبین"]
[null,null,"10-1کلیات","تأیید","عدم نیاز","عدم تأیید با ذکر توضیحات"]
[null,1,"آکس‌بندی، ستون گذاری و موقعیت مهاربندی ترسیم شده است."]
[null,2,"درها و پنجره ها ترسیم شده است."]
[null,3,"کدهای ارتفاعی درج شده است."]
[null,4,"ادرس دهی جزییات و بزرگنمایی های نقشه درج شده است."]
[null,"ردیف","10پلان مبلمان","دیدگاه طراح",null,"دیدگاه بازبین"]
[null,null,"10-2نشیمن پذیرایی","تأیید","عدم نیاز","عدم تأیید با ذکر توضیحات"]
[null,1,"مبلمان متناسب پذیرایی و غذاخوری ترسیم شده است."]
[null,{"$f":"B95+1","v":2},"مبلمان متناسب تماشای تلویزیون ترسیم شده است."]
[null,3,"رادیاتورها و یونیت اسپلیت ترسیم شده است."]
[null,"ردیف","10پلان مبلمان","دیدگاه طراح",null,"دیدگاه بازبین"]
[null,null,"10-3آشپزخانه","تأیید","عدم نیاز","عدم تأیید با ذکر توضیحات"]
[null,1,"یخچال، سینک ظرفشویی و اجاق گاز جانمایی شده اند."]
[null,2,"موقعیت پکیج (در صورت قرارگیری در آشپزخانه) مشخص شده است."]
[null,{"$f":"B101+1","v":3},"ماشین ظرفشویی و لباسشویی (در صورت قرارگیری در آشپزخانه) ترسیم شده اند."]
[null,"ردیف","10پلان مبلمان","دیدگاه طراح",null,"دیدگاه بازبین"]
[null,null,"10-4اتاق خواب","تأیید","عدم نیاز","عدم تأیید با ذکر توضیحات"]
[null,1,"کمدها، تخت و میز آرایش (کار) ترسیم شده است."]
[null,2,"رادیاتورها و یونیت اسپلیت ترسیم شده است."]
[null,"ردیف","10پلان مبلمان","دیدگاه طراح",null,"دیدگاه بازبین"]
[null,null,"10-5حمام و سرویس","تأیید","عدم نیاز","عدم تأیید با ذکر توضیحات"]
[null,1,"توالت ایرانی و فرنگی ترسیم شده است."]
[null,2,"روشویی، دوش و حوله خشک کن ترسیم شده است."]
[null,"ردیف","10پلان مبلمان","دیدگاه طراح",null,"دیدگاه بازبین"]
[null,null,"10-6مشاعات","تأیید","عدم نیاز","عدم تأیید با ذکر توضیحات"]
[null,1,"محل توقف و تعداد خودرو  مشخص شده است."]
[null,{"$f":"B113+1","v":2},"مبلمان لابی ترسیم شده است."]
[null,{"$f":"B114+1","v":3},"کنتور آب، گاز و برق جانمایی شده اند."]
[null,{"$f":"B115+1","v":4},"رایزهای عموی تاسیسات و تابلوهای آتش نشانی مشخص شده است."]
[null,{"$f":"B116+1","v":5}," فضای مورد نیاز تاسیسات پیش بینی و ترسیم شده است."]
[null,{"$f":"B117+1","v":6},"مبلمان، فضای سبز  و کلیه درختان موجود حیاط ترسیم شده است."]
[null,"ردیف",11,"دیدگاه طراح",null,"دیدگاه بازبین"]
[null,null,"پلان شیب بندی بام","تأیید","عدم نیاز","عدم تأیید با ذکر توضیحات"]
[null,1," آکس‌بندی مشخص شده است."]
[null,{"$f":"B121+1","v":2},"شیب بندی بام اصلی  و خرپشته ترسیم شده است."]
[null,3,"حوزه جمع آوری آب باران و محل خروجی مشخص شده است."]
[null,4,"سیستم های تاسیساتی روی بام، جانمایی شده اند."]
[null,{"$f":"B124+1","v":5},"موقعیت داکت های تأسیساتی مشخص شده است"]
[null,{"$f":"B125+1","v":6},"کدهای ارتفاعی و اندازه گذاری ها انجام شده است."]
[null,"ردیف",12,"دیدگاه طراح",null,"دیدگاه بازبین"]
[null,null,"مقطع","تأیید","عدم نیاز","عدم تأیید با ذکر توضیحات"]
[null,1," آکس‌بندی مشخص شده است."]
[null,2,"با پلان ها انطباق دارد."]
[null,3,"تراز روی فنداسیون مشخص شده است."]
[null,4,"با نماها انطباق دارد."]
[null,5,"پله ها به درستی ترسیم شده است."]
[null,6,"تیرهای اصلی سازه در مقطع نمایش داده شود."]
[null,7,"جانپناه ها و نرده پله ترسیم شده اند."]
[null,8,"کدهای ارتفاعی طبقات، پاگرد پله و پیش آمدگی ها نمایش داده شده است."]
[null,9,"کد ارتفاعی پنجره ها، جانپناه و درها نمایش داده شده است."]
[null,10,"سقف کاذب ترسیم شده است."]
[null,"ردیف",13,"دیدگاه طراح",null,"دیدگاه بازبین"]
[null,null,"نما","تأیید","عدم نیاز","عدم تأیید با ذکر توضیحات"]
[null,1," آکس‌بندی مشخص شده است."]
[null,{"$f":"B141+1","v":2},"با پلان ها انطباق دارد."]
[null,3," با مقاطع انطباق دارد."]
[null,4,"معرفی مصالح با ذکر کد، ابعاد و رنگ مشخص شده است."]
[null,5,"خط‌چین سقف ها ترسیم شده است."]
[null,6,"جزییات لازم جهت اجرا ی نما ترسیم شده است."]
[null,7,"تیپ بندی در و پنجره انجام شده است."]
[null,8,"کد ارتفاعی پنجره ها، پاگرد پله و جانپناه نمایش داده شده است."]
[null,9,"کد ارتفاعی سایر اجزای نما حسب ضرورت درج شده است."]
[null,10,"موقعیت wall section مشخص شده است."]
[null,"ردیف",14,"دیدگاه طراح",null,"دیدگاه بازبین"]
[null,null,"پلان معکوس سقف (سقف کاذب)","تأیید","عدم نیاز","عدم تأیید با ذکر توضیحات"]
[null,1," آکس‌بندی مشخص شده است."]
[null,{"$f":"B153+1","v":2},"نوع مصالح مصرفی مشخص شده است."]
[null,{"$f":"B154+1","v":3},"معرفی فضا انجام شده است."]
[null,{"$f":"B155+1","v":4},"جانمایی المان های نوری مشخص شده است."]
[null,{"$f":"B156+1","v":5},"کدهای ارتفاعی اختلاف سطوح درج شده است."]
[null,{"$f":"B157+1","v":6},"جزییات اجرایی لازم ارایه شده است."]
[null,"ردیف",15,"دیدگاه طراح",null,"دیدگاه بازبین"]
[null,null,"پلان کف سازی طبقات","تأیید","عدم نیاز","عدم تأیید با ذکر توضیحات"]
[null,1," آکس‌بندی مشخص شده است."]
[null,2,"موقعیت کفشور و شیب بندی در فضاها مشخص شده است."]
[null,3,"نوع مصالح مشخص شده است."]
[null,4,"معرفی فضا انجام شده است."]
[null,"ردیف",16,"دیدگاه طراح",null,"دیدگاه بازبین"]
[null,null,"پلان جانمایی والپست","تأیید","عدم نیاز","عدم تأیید با ذکر توضیحات"]
[null,1," آکس‌بندی مشخص شده است."]
[null,{"$f":"B167+1","v":2},"اندازه گذاری محل وال پست ها انجام شده است."]
[null,"ردیف",17,"دیدگاه طراح",null,"دیدگاه بازبین"]
[null,null,"پلان پوشش سقف ها","تأیید","عدم نیاز","عدم تأیید با ذکر توضیحات"]
[null,1," آکس‌بندی مشخص شده است."]
[null,{"$f":"B171+1","v":2},"موقعیت و ابعاد بازشوهای سقف مشخص شده است."]
[null,{"$f":"B172+1","v":3},"شکل و اندازه گذاری لبه سقف در محدوده نما مشخص شده است."]
[null,"ردیف",18,"دیدگاه طراح",null,"دیدگاه بازبین"]
[null,null,"پلان بزرگنمایی لبه نما","تأیید","عدم نیاز","عدم تأیید با ذکر توضیحات"]
[null,1," آکس‌بندی  و موقعیت wall sectionمشخص شده است."]
[null,{"$f":"B176+1","v":2},"نوع مصالح مشخص شده است."]
[null,{"$f":"B177+1","v":3},"جزییات اجرایی wallpost مشخص شده است."]
[null,{"$f":"B178+1","v":4},"اندازه گذاری و تراز برش افقی انجام شده است."]
[null,"ردیف",19,"دیدگاه طراح",null,"دیدگاه بازبین"]
[null,null,"برش دیوار (Wall Section)","تأیید","عدم نیاز","عدم تأیید با ذکر توضیحات"]
[null,1," آکس‌بندی مشخص شده است."]
[null,{"$f":"B182+1","v":2},"نوع مصالح مصرفی مشخص شده است."]
[null,3,"کدهای ارتفاعی و اندازه گذاری نمایش داده شده اند."]
[null,4,"تیپ بندی درها و پنجره ها نمایش داده شده است."]
[null,5,"جزییات بزرگنمایی لازم ارایه شده است."]
[null,6,"جزییات سازه ای اجرای احجام نما ارجاعی از طراح سازه، ارائه شده است."]
[null,7,"سازه سقف مشخص شده است."]
[null,"ردیف",20,"دیدگاه طراح",null,"دیدگاه بازبین"]
[null,null,"جزییات محوطه","تأیید","عدم نیاز","عدم تأیید با ذکر توضیحات"]
[null,1,"معرفی فضاها انجام شده است."]
[null,{"$f":"B191+1","v":2},"نوع مصالح مصرفی جداره ها و کفسازی مشخص شده است."]
[null,3,"جزییات اجرایی سردر و دیوار محوطه ارائه شده است."]
[null,"ردیف",21,"دیدگاه طراح",null,"دیدگاه بازبین"]
[null,null,"بزرگنمایی پلان و نمای فضاهای مرطوب","تأیید","عدم نیاز","عدم تأیید با ذکر توضیحات"]
[null,1,"آکس بندی و معرفی فضا انجام شده است."]
[null,{"$f":"B196+1","v":2},"شیب بندی لحاظ شده است."]
[null,{"$f":"B197+1","v":3},"نوع مصالح کفسازی و جداره ها مشخص شده است."]
[null,"ردیف",22,"دیدگاه طراح",null,"دیدگاه بازبین"]
[null,null,"بزرگنمایی پلان و برش باکس پله","تأیید","عدم نیاز","عدم تأیید با ذکر توضیحات"]
[null,1," آکس‌بندی مشخص شده است."]
[null,{"$f":"B201+1","v":2},"مصالح مشخص شده است."]
[null,{"$f":"B202+1","v":3},"شماره گذاری پله ها و کدهای ارتفاعی و اندازه گذاری  نمایش داده شده است."]
[null,{"$f":"B203+1","v":4},"خط شکست شمشیری ترسیم شده است."]
[null,"ردیف",23,"دیدگاه طراح",null,"دیدگاه بازبین"]
[null,null,"جزییات بزرگنمایی باغ بام","تأیید","عدم نیاز","عدم تأیید با ذکر توضیحات"]
[null,1,"کد ارتفاعی و اندازه گذاری مشخص شده است."]
[null,2,"معرفی فضاها انجام شده است."]
[null,3,"نوع مصالح جداره ها و کفسازی مشخص شده است."]
[null,4,"وال پست های جانپناه مشخص شده است."]
[null,5,"نقشه سازه مستحدثات ارائه شده است."]
[null,"ردیف",24,"دیدگاه طراح",null,"دیدگاه بازبین"]
[null,null,"تیپ بندی در و پنجره","تأیید","عدم نیاز","عدم تأیید با ذکر توضیحات"]
[null,1,"تعداد و جهت بازشوها مشخص شده است."]
[null,{"$f":"B214+1","v":2},"جنس و رنگ پروفیل ها مشخص شده است."]
[null,3,"رنگ و تعداد جداره شیشه ها مشخص شده است."]
[null,"ردیف",25,"دیدگاه طراح",null,"دیدگاه بازبین"]
[null,null,"جزییات عایق کاری جداره های نما","تأیید","عدم نیاز","عدم تأیید با ذکر توضیحات"]
[null,1,"جزئیات عایق‌کاری حرارتی بام  ارائه شده است."]
[null,{"$f":"B219+1","v":2},"جزئیات عایق‌کاری حرارتی اولین کف قابل تصرف ارائه شده است."]
[null,{"$f":"B220+1","v":3},"جزئیات عایق‌کاری حرارتی دیوارهای جانبی و نما ارائه شده است."]
[null,"ردیف",26,"دیدگاه طراح",null,"دیدگاه بازبین"]
[null,null,"جزییات اختصاصی:حسب کاربری پروژه ","تأیید","عدم نیاز","عدم تأیید با ذکر توضیحات"]
[null,1,"جزییات اختصاصی معماری"]
[null,"ردیف",27,"دیدگاه طراح",null,"دیدگاه بازبین"]
[null,null,"جزییات عمومی: هماهنگ با فضاهای پروژه","تأیید","عدم نیاز","عدم تأیید با ذکر توضیحات"]
[null,1,"جزییات کفسازی ارائه شده است."]
[null,{"$f":"B227+1","v":2}," جزییات سقف کاذب ارائه شده است."]
[null,3,"جزییات عایق کاری رطوبتی ارائه شده است."]
[null,4," جزییات وال پست ارائه شده است."]
[null,5," جزییات بازشوها ارائه شده است."]
[null,6,"جزییات پله ها ارائه شده است."]
[null,7,"جزییات حمام و سرویس بهداشتی ارائه شده است."]
[null,"ردیف",28,"دیدگاه طراح",null,"دیدگاه بازبین"]
[null,null,"جدول نازک کاری","تأیید","عدم نیاز","عدم تأیید با ذکر توضیحات"]
[null,1,"مصالح کف ارائه شده است."]
[null,{"$f":"B236+1","v":2}," مصالح سقف ارائه شده است."]
[null,{"$f":"B237+1","v":3},"مصالح دیوار ارائه شده است."]

{"sheet":"اختصاصی افراد دارای معلولیت","index":5,"n_rows":20,"n_cols":6,"rows_kept":20,"cut":false,"hidden":false,"merged":[[0,1,0,5]]}
[null,"سیاهه بازبینی اختصاصی واحدهای قابل دسترس افراد دارای معلولیت  (مربوط به ساختمان های 20 واحد و بیشتر)"]
[null,"ردیف","عناوین بازبینی","تأیید","عدم نیاز","عدم تأیید با ذکر توضیحات"]
[null,1,"پنج درصد کل واحدها، قابل دسترس برای افراد دارای معلولیت می باشد."]
[null,{"$f":"1+B3","v":2},"واحد(های) قابل دسترس برای افراد دارای معلولیت مشخص شده است."]
[null,3,"درها و پنجره ها از نظر موقعیت و اندازه و وضعیت، مطابق ضوابط نشریه 246 ترسیم شده است."]
[null,4," برای هر واحد مسکونی قابل دسترس، حداقل یک واحد پارکینگ قابل دسترس برای افراد دارای معلولیت در نظر گرفته شده است."]
[null,5,"حداقل عرض محل توقف خودرو افراد دارای معلولیت ۳۵۰ سانتیمتر است. "]
[null,6,"حداقل ارتفاع مفید پارکینگ های مسقف ویژه افراد دارای معلولیت و ورودی آنها ۲۴۰ سانتیمتر است."]
[null,7,"محل توقف ویژه خودرو افراد دارای معلولیت، در نزدیک ترین فاصله به درهای ورودی یا خروجی و آسانسور پارکینگ است. "]
[null,8,"در پارکینگ های طبقاتی محل ویژه خودرو افراد دارای معلولیت، در اولین طبقه است."]
[null,9,"ورودی،فضاهای زندگی،غذاخوری،خواب و ایوان در واحد مسکونی دسترس پذیر باید دارای فضای آزاد به قطر حداقل ۱۵۰ سانتی متر جهت چرخش،عبور و استفاده از وسایل باشد."]
[null,10,"حداقل یک چشمه سرویس بهداشتی مناسب برای افراد دارای معلولیت با ابعاد حداقل ۱۷۰*۱۵۰ سانتی متر پیش بینی شده است. "]
[null,11,"حداقل عرض راهروها 140 سانتی متر رعایت شده است."]
[null,12,"حداقل عرض تراس 150 سانتی متر رعایت شده است."]
[null,13,"در مجاورت تمام وسایل ضروری آشپزخانه (اجاق، یخچال، ظرفشویی و...) فضای آزاد کف به قطر 150 سانتیمتر برای دسترسی شخص با صندلی چرخدار از روبرو یا پهلو لحاظ شده است."]
[null,14,"برای استفاده از تجهیزات ثابت در اتاقها، فضای آزاد کف به ابعاد حداقل ۷۵ *120 سانتی‌متر فراهم شده است."]
[null,15," فضای آزاد عبور به عرض حداقل ۹۰ سانتی متر پیرامون مبلمان فضاها پیش بینی شده است."]
[null,16,"درِ فضای بهداشتی برای افراد دارای معلولیت به صورت لولایی و به بیرون باز می شود."]
[null,17,"کاسه مستراح فرنگی در ارتفاع 45 سانتیمتر از کف و با فاصله 30 سانتیمتر از دیوار مجاور جانمایی گردیده است."]
[null,18,"فضاهای آزاد کف در جلوی وان (80 *150 سانتی‌متر) یا زیر دوش (120 *120 سانتی‌متر) درنظر گرفته شده است."]